Cogmind - Beta 15 @@@ ROGUE MODE // 2025.07.07 @ 21:18:35 Player: Windjigo Result: Destroyed by MK-9DQ(j) with Overtuned Pulse Rifle Performance ------------- Evolutions (0) 0 Regions Visited (3) 600 Robots Destroyed (25) 125 Value Destroyed (500) 500 Prototype IDs (0) 0 Alien Tech Used (0) 0 Bonus (136) 136 TOTAL SCORE: 1361 Bonus ------- Follower Combat Kills 136 Cogmind --------- Core Integrity 0/250 Matter 300/300 Energy 261/265 System Corruption 0% Temperature Cool (14) Movement Treading (160) Location -9/Recycling Parts ------- > --- POWER (1) -------- Improved Ion Engine > --- PROPULSION (2) --- Light Treads Light Treads > --- UTILITY (2) ------ Large Storage Unit Hardened Light Armor Plating > --- WEAPON (2) ------- Beam Rifle Autogun > --- INVENTORY (15) --- Improved Ion Engine Compact Wheel Compact Wheel Disposable Heat Sink Medium Storage Unit Signal Interpreter Hacking Suite Particle Gun Particle Cannon Autogun Rocket Launcher Mini Grenade Launcher Datajack Mining Laser Maul Peak State ------------ > --- POWER ------------ Improved Ion Engine > --- PROPULSION ------- Light Treads Light Treads > --- UTILITY ---------- Large Storage Unit Improved Targeting Computer > --- WEAPON ----------- Beam Rifle Autogun > --- INVENTORY -------- Light Treads Compact Wheel Compact Wheel Disposable Heat Sink Medium Storage Unit Signal Interpreter Light Armor Plating Hacking Suite Medium Laser Small Laser Light Assault Rifle Heavy Assault Rifle Mining Laser Hammer Maul [Rating: 13] Favorites ----------- Power Improved Ion Engine Engine Improved Ion Engine Propulsion Light Treads Treads Light Treads Wheel Compact Wheel Utility Large Storage Unit Device Sensor Array Storage Large Storage Unit Processor Improved Targeting Computer Protection Hardened Light Armor Plating Weapon Light Assault Rifle Energy Gun Beam Rifle Ballistic Gun Light Assault Rifle Launcher Grenade Launcher Special Melee Weapon Datajack Build | -11 -10 -10 -9 ------- Run | Yrd Mat Sub Rec Slots Evolved . | . . . . Power . | . . . . Propulsion . | . . . . Utility . | . . . . Weapon . | . . . . Parts Attached 24 | 7 5 5 7 Power 3 | 1 1 . 1 Engine 3 | 1 1 . 1 Core . | . . . . Reactor . | . . . . Propulsion 6 | 2 . 3 1 Treads 4 | 2 . 1 1 Leg . | . . . . Wheel 2 | . . 2 . Hover . | . . . . Flight . | . . . . Utility 7 | 2 3 . 2 Device 2 | 1 1 . . Storage 3 | 1 2 . . Processor 1 | . . . 1 Hackware . | . . . . Protection 1 | . . . 1 Artifact . | . . . . Weapon 8 | 2 1 2 3 Energy Gun 1 | . . . 1 Energy Cannon . | . . . . Ballistic Gun 5 | 2 . 2 1 Ballistic Cannon . | . . . . Launcher 1 | . 1 . . Special Weapon . | . . . . Impact Weapon . | . . . . Slashing Weapon . | . . . . Piercing Weapon . | . . . . Special Melee Weapon 1 | . . . 1 Unidentified Prototypes . | . . . . Parts Lost 4 | . . 4 . Power 2 | . . 2 . Propulsion 1 | . . 1 . Utility . | . . . . Weapon 1 | . . 1 . Highest Loss Streak 2 | . . 2 . To Critical Strikes . | . . . . Average Backups 13 | 3 10 13 14 Power . | . 1 . . Propulsion 2 | 1 3 3 2 Utility 3 | . 1 3 4 Weapon 5 | 1 4 6 6 Tool/Special . | . . . . Unused Backups 22 | . 2 . 20 Power 1 | . . . 1 Propulsion 1 | . 1 . . Utility 7 | . . . 7 Weapon 13 | . 1 . 12 Tool/Special . | . . . . Average Slot Usage (%) 98 | . 97 97 99 Engine 13 | . 13 11 13 Treads 27 | . 27 26 27 Device 6 | . 13 14 2 Storage 13 | . 13 14 14 Processor 4 | . . . 7 Protection 2 | . . . 4 Energy Gun 8 | . . . 13 Ballistic Gun 19 | . 27 26 13 Peak Build Rating 13 | 7 8 8 13 Average Rating 10 | 5 7 7 12 On Entrance 5 | . 7 8 7 Naked Turns . | . . . . Heaviest Build 38 | 11 26 28 38 Greatest Support 40 | 40 40 40 40 Greatest Overweight (x) . | . . . . Average Overweight (x) . | . . . . Largest Inventory Capacity 30 | 8 30 15 15 Average Capacity 14 | 7 12 15 15 Most Carried 15 | 7 15 15 15 Average Carried 13 | 3 10 13 14 Final Capacity 15 | 8 15 15 15 Final Carried 15 | 6 15 12 15 Class Distribution -------------------- 73% | Mutant 26% | Commander-Mutant Dominant Class ---------------- Mutant | -10/Materials Mutant | -10/Subcaves Mutant | -9/Recycling Resources | -11 -10 -10 -9 ----------- Run | Yrd Mat Sub Rec Matter Collected 888 | 294 159 140 295 Remotely . | . . . . Salvage Created 616 | 96 226 114 180 Parts 41 | 6 24 8 3 Haulers Intercepted 1 | . 1 . . Recyclers Shooed 3 | . . . 3 Parts Field Recycled . | . . . . Retrieved Matter . | . . . . Parts Self-Destructed 12 | . . 12 . Prevented . | . . . . Kills | -11 -10 -10 -9 ------- Run | Yrd Mat Sub Rec Combat Hostiles Destroyed 18 | . 9 8 1 Guns 6 | . 4 1 1 AOE 12 | . 5 7 . Classes Destroyed 8 | 2 4 2 . Tunneler 2 | 1 1 . . Hauler 1 | . 1 . . Recycler 2 | 1 . . 1 Operator 1 | . 1 . . Turret 1 | . . 1 . Swarmer 10 | . 6 4 . Grunt 4 | . 3 . 1 Subdweller 4 | . . 4 . Best Kill Streak 4 | 2 4 4 1 Combat Bots Only 4 | . 3 4 1 Max Kills in Single Turn 3 | 1 3 2 1 Gunslinging . | . . . . Exploded 2 | . 2 2 . Melee . | . . . . Uniques/NPCs Destroyed . | . . . . Combat | -11 -10 -10 -9 -------- Run | Yrd Mat Sub Rec Hostile Shots Fired 152 | . 35 114 3 Missed 56 | . 8 48 . Hits 96 | . 27 66 3 Projectile 96 | . 27 66 3 Damage Taken 1049 | . 341 656 52 Core 263 | . 96 146 21 Absorbed by Shields . | . . . . Regen/Repaired (Parts) 92 | . 92 . . Core Remaining (%) 100 | 100 . . . Volleys Fired 73 | 12 31 23 7 Largest 2 | 2 2 2 2 Hottest 79 | 40 50 50 79 Shots Fired 143 | 24 59 46 14 Gun 124 | 24 55 31 14 Cannon . | . . . . Launcher 19 | . 4 15 . Special . | . . . . Kinetic 117 | 24 55 31 7 Thermal 7 | . . . 7 Explosive 19 | . 4 15 . Electromagnetic . | . . . . Robot Hit Streak 14 | 11 12 14 8 Robot Miss Streak 3 | 1 2 3 1 Penetration Max . | . . . . Secondary Targets 1 | . 1 . . Max Gunslinging Chain 1 | . 1 . . Shots Hit Robots 119 | 20 41 30 28 Core Hits 46 | 5 18 20 3 Critical Kills 1 | . 1 . . Critical Parts Destroyed . | . . . . Critical Strikes 2 | . 1 . 1 Burn 1 | . . . 1 Destroy 1 | . 1 . . Melee Attacks 18 | . . . 18 Impact . | . . . . Slashing . | . . . . Piercing . | . . . . Sneak Attacks 18 | . . . 18 Combat Hostiles . | . . . . Follow-up Attacks . | . . . . Damage Inflicted 1788 | 150 627 848 163 Guns 785 | 150 309 163 163 Cannons . | . . . . Explosions 1003 | . 318 685 . Melee . | . . . . Ramming . | . . . . Kinetic 697 | 150 309 163 75 Thermal 88 | . . . 88 Explosive 1003 | . 318 685 . Electromagnetic . | . . . . Impact . | . . . . Slashing . | . . . . Piercing . | . . . . Highest Corruption . | . . . . Average Corruption . | . . . . Corruption Purged . | . . . . Corruption Blocked . | . . . . Overload Shots . | . . . . Overflow Damage 29 | . 8 21 . Projectiles . | . . . . Explosions 29 | . 8 21 . Melee . | . . . . Knockbacks . | . . . . Impact . | . . . . Kinetic . | . . . . Secondary . | . . . . Self-Inflicted Damage 161 | . 36 125 . Shots 6 | . 1 5 . Rammed . | . . . . Targets Rammed . | . . . . Kicked . | . . . . Crushed . | . . . . Highest Temperature 101 | . 18 . 101 Average Temperature 25 | . 8 . 37 Received Heat Transfer 366 | . 90 246 30 Siege Activations . | . . . . Martial Activations . | . . . . Shielding Activations . | . . . . Robots Disrupted . | . . . . Combat Hostiles . | . . . . Robots Corrupted . | . . . . Combat Hostiles . | . . . . Parts Fried . | . . . . Impact Corruptions . | . . . . Robots Melted . | . . . . Combat Hostiles . | . . . . Parts Melted . | . . . . Heat Transferred 296 | . . . 296 Parts Sabotaged . | . . . . Parts Stolen . | . . . . Parts Stripped . | . . . . Power Chain Reactions . | . . . . Alert | -11 -10 -10 -9 ------- Run | Yrd Mat Sub Rec Maximum Alert Level . | . . . . Low Security (%) 100 | 100 100 . 100 Level 1 . | . . . . Level 2 . | . . . . Level 3 . | . . . . Level 4 . | . . . . Level 5 . | . . . . High Security . | . . . . Max Security . | . . . . Peak Influence 157 | 5 157 . 124 Initial 93 | . . . 93 Average 39 | . 78 . 27 Influence Increases 783 | 10 312 220 241 Destroy 0b10 Robot/C 380 | . 180 100 100 Destroy 0b10 Robot/NC 45 | 10 15 . 20 Destroy Leader 32 | . 32 . . Allied During Kill 27 | . . . 27 Successful Hack 44 | . 26 . 18 Select Force Hacks 60 | . . . 60 Disable Machine 45 | . 30 . 15 Destroy Structure 15 | . 14 . 1 Lose Combat Pursuer 135 | . 15 120 . Influence Decreases 783 | 10 218 120 435 Entered New Map 147 | . . 46 101 Time Decay 575 | 10 218 64 283 Lost Part 10 | . . 10 . Lost Ally 51 | . . . 51 Squads Dispatched 1 | . 1 . . Investigation . | . . . . Extermination . | . . . . Reinforcement 1 | . 1 . . Assault . | . . . . Garrison . | . . . . Intercept . | . . . . Searches Triggered . | . . . . Construction Impeded . | . . . . Haulers Reinforced . | . . . . Active Scanning Responses . | . . . . Cargo Convoy Interrupts . | . . . . Stealth | -11 -10 -10 -9 --------- Run | Yrd Mat Sub Rec Distress Signals 4 | . 2 . 2 Communications Jammed . | . . . . Distress Signals . | . . . . Times Spotted 35 | . 15 12 8 Peak Tracking Total 5 | . 5 4 4 Tactical Retreats 4 | . 1 3 . Traps | -11 -10 -10 -9 ------- Run | Yrd Mat Sub Rec Traps Triggered 1 | . 1 . . Indirectly . | . . . . Trap Hack Attempts . | . . . . Triggered . | . . . . Disarmed . | . . . . Reprogrammed . | . . . . Reused . | . . . . Traps Extracted . | . . . . Installed . | . . . . Triggered . | . . . . Machines | -11 -10 -10 -9 ---------- Run | Yrd Mat Sub Rec Machines Disabled 7 | . 2 3 2 Max in Single Turn 2 | . 1 2 . Machines Repaired . | . . . . Machines Dismantled . | . . . . Machines Sabotaged . | . . . . Overloaded Fab Kills . | . . . . Hacking | -11 -10 -10 -9 --------- Run | Yrd Mat Sub Rec Machines Accessed 15 | . 5 . 10 Terminals 10 | . 4 . 6 Fabricators . | . . . . Repair Stations 1 | . 1 . . Recycling Units 3 | . . . 3 Scanalyzers . | . . . . Garrison Access . | . . . . Total Hacks 35 | . 13 . 22 Successful 22 | . 9 . 13 Failed 13 | . 4 . 9 Catastrophic . | . . . . Database Lockouts . | . . . . Manual 21 | . 9 . 12 Terminals 25 | . 10 . 15 Fabricators . | . . . . Repair Stations 3 | . 3 . . Recycling Units 5 | . . . 5 Scanalyzers . | . . . . Garrison Access . | . . . . Terminal Hacks 6 | . 3 . 3 Robot Analysis 2 | . 2 . . Zone Layout 2 | . 1 . 1 Release Object 2 | . . . 2 Fabricator Hacks . | . . . . Repair Station Hacks 2 | . 2 . . Scan Component 1 | . 1 . . Repair 1 | . 1 . . Recycling Unit Hacks 3 | . . . 3 Retrieve Components 3 | . . . 3 Scanalyzer . | . . . . Garrison Access Hacks . | . . . . Unauthorized Hacks 11 | . 4 . 7 Terminals 9 | . 4 . 5 Botnet 9 | . 4 . 5 Fabricators . | . . . . Repair Stations . | . . . . Recycling Units 2 | . . . 2 Tunnel 2 | . . . 2 Scanalyzers . | . . . . Garrison Access . | . . . . Data Cores Recovered . | . . . . Used . | . . . . Hacking Detections 10 | . 4 . 6 Full Trace Events 2 | . 1 . 1 Feedback Events . | . . . . Feedback Blocked . | . . . . Robot Schematics Acquired . | . . . . Robots Built . | . . . . Authchips . | . . . . Time . | . . . . Total Robot Build Rating . | . . . . Part Schematics Acquired . | . . . . Parts Built . | . . . . Authchips . | . . . . Time . | . . . . Total Part Build Rating . | . . . . Parts Repaired 1 | . 1 . . Time 26 | . 26 . . Parts Recycled . | . . . . Recycled Matter . | . . . . Retrieved Matter . | . . . . Retrieved Components 10 | . . . 10 Parts Scanalyzed . | . . . . Part Schematics Acquired . | . . . . Parts Damaged . | . . . . Bothacking | -11 -10 -10 -9 ------------ Run | Yrd Mat Sub Rec Used RIF Installer . | . . . . Robots Hacked . | . . . . Non-combat . | . . . . Combat . | . . . . Robot Hacks Applied . | . . . . Relay Couplers Released . | . . . . Fabnet Peak Effective % . | . . . . Robots Rewired 19 | . . . 19 Allies Hacked . | . . . . Hacks Repelled . | . . . . Allies | -11 -10 -10 -9 -------- Run | Yrd Mat Sub Rec Total Allies 19 | . . . 19 Largest Group 18 | . . . 18 Highest-Rated Group 258 | . . . 258 Highest-Rated Ally 27 | . . . 27 Total Orders . | . . . . Ally Attacks 36 | . . . 36 Total Damage 574 | . . . 574 Kills 8 | . . . 8 Allies Corrupted . | . . . . Allies Melted . | . . . . Intel | -11 -10 -10 -9 ------- Run | Yrd Mat Sub Rec Active Infowar (turns) 1303 | 11 596 459 237 Sensors 1121 | . 425 459 237 Seismic 182 | 11 171 . . Robot Analysis Total 2 | . 2 . . Derelict Logs Recovered 1 | . . 1 . Drone Launches . | . . . . Drone Recoveries . | . . . . Exploration | -11 -10 -10 -9 ------------- Run | Yrd Mat Sub Rec Turns Passed 2756 | 113 608 459 1576 Spaces Moved 1408 | 52 281 242 833 Core 18 | 18 . . . Treads 1356 | 34 281 231 810 Legs . | . . . . Wheels 34 | . . 11 23 Hover . | . . . . Flight . | . . . . Fastest Speed 50 | 50 160 100 100 Average Speed 157 | 121 160 157 158 Slowest Speed 160 | 160 160 160 160 Overloaded Moves . | . . . . Propulsion Burnouts . | . . . . Robots Hopped . | . . . . Potential Cave-ins . | . . . . Cave-ins Triggered . | . . . . Exploration Rate (%) 47 | 5 63 21 99 Regions Visited 3 Branch Regions 2 Pre-discovered Areas 2 | . . . 2 Known Exits Taken . | . . . . Unknown Exits Taken 3 | 1 1 1 . Scrap Searched . | . . . . Spaces Dug . | . . . . Terrain Destroyed 92 | . 21 71 . Melee . | . . . . Projectile . | . . . . AOE 92 | . 21 71 . Terrain Rammed . | . . . . Walls Destroyed . | . . . . Machines Disabled . | . . . . Actions | -11 -10 -10 -9 --------- Run | Yrd Mat Sub Rec Total 1826 | 82 392 277 1075 Wait 151 | . 47 . 104 Move 1405 | 51 280 241 833 Hop . | . . . . Pick Up 44 | 12 15 1 16 Fast Attach 7 | 1 4 . 2 Attach 12 | 6 2 3 1 Detach . | . . . . Swap 19 | . 5 8 6 Drop 22 | . 8 1 13 Fire 73 | 12 31 23 7 Melee 18 | . . . 18 Ram . | . . . . Kick . | . . . . Crush . | . . . . Escape Stasis . | . . . . Rewire 75 | . . . 75 Trap . | . . . . Miscellaneous . | . . . . Route ------- -11/Scrapyard -10/Materials (discovered 3 exits: [*Mat] / [*Min] / [*Sub]) -10/Subcaves (discovered 2 exits: [*Mat] / *Rec) -9/Recycling (discovered 1 exit: [*Fac]) History --------- Turn | Location | Event 6 | -11/Scrapyard | Discovered new exit (range 15) 114 | -11/Scrapyard | Entered Materials 240 | -10/Materials | Discovered new exit (range 14) 318 | -10/Materials | Build established: Mutant 529 | -10/Materials | Discovered new exit (range 3) 682 | -10/Materials | Repaired Lgt. Treads 711 | -10/Materials | Discovered new exit (range 8) 722 | -10/Materials | Entered Subcaves 724 | -10/Subcaves | Ambushed by Subdwellers from Twisted Machinery 727 | -10/Subcaves | Core integrity fell below 50% 1065 | -10/Subcaves | Discovered new exit (range 13) 1076 | -10/Subcaves | A swath of the cavern ceiling suddenly collapsed 1136 | -10/Subcaves | Discovered new exit (range 14) 1153 | -10/Subcaves | Core integrity fell below 20% 1181 | -10/Subcaves | Entered Recycling 1182 | -9/Recycling | Joined Warlord attack on 0b10 via Recycling 1794 | -9/Recycling | Scanned before Scraplab entrance 1814 | -9/Recycling | Discovered new exit (range 7) 2331 | -9/Recycling | Build established: Commander-Mutant 2719 | -9/Recycling | Entered Scraplab 2741 | -9/Recycling | Angered Scraplab inhabitants 2757 | -9/Recycling | Destroyed by MK-9DQ(j) with Overtuned Pulse Rifle Last Messages --------------- 02745_ Savior 2d destroyed. 02746_ Slug penetrates Engineer 2a. 02748_ Slug penetrates MK-9DQ(j). 02748_ Mercenary 2c destroyed. 02748_ Mercenary 2d destroyed. 02749_ Slug penetrates Reinforced Barrier. 02749_ Commando 2b suffers critical hit (Burn). 02749_ Commando 2b destroyed. Prototype Device integrity failing. 02751_ Commando 2a destroyed. 02751_ Slug penetrates Savior 2b. 02752_ MK-9DQ(j) cannibalizes Ion Engine to repair Lgt. Deuterium Engine. 02752_ Savior 2b destroyed. 02753_ MK-9DQ(j) cannibalizes Imp. Ion Engine to repair Lgt. Deuterium Engine. 02754_ MK-9DQ(j) heat damages Mak. Salvage Targeting Computer. 02755_ Commando 2c destroyed. 02756_ Savior 2c destroyed. Map ----- +----------------------------------------------------+ | | | | | | | | | | | | | | | | | | | | | | | | | | | | | | | | | | | | | | | | | | | ?????????????????????????#########?????????????? | | ?????????????????????????#"""""""#?????????????? | | ?????????????????????????#!"!X " ## #??????????? | | ???????????????????#######!u=!% #??????????? | | ??????????????????## k!*%@!%%[%!j #??????????? | | ??????????????????# #####j*!%[= "#??????????? | | ??????????????????## #???#%!=[ ""#??????????? | | ???????????????????# #???#"&!"& ""???????????? | | ???????????????????# #???#"""" """ #??????????? | | ????????????????#### ################??????????? | | ????????????????# #??????????????????????? | | ????????????????# #??????????????????????? | | ?#############??# #??????????????????????? | | ?# #??# #??????????????????????? | | ?# """ """ #??####/####??????????????????????? | | ?# """"""""" #?????# #?????????????????????????? | | ?# """"" ####### #?????????????????????????? | | ?# / #?????????????????????????? | | ?# """" #### ####?????????????????????????? | | ?# """" #??# #????????????????????????????? | | ?# """" #??# #????????????????????????????? | | ?# #??# #????????????????????????????? | | ######/########## ########?????????????????????? | | #?????????????????????? | | < #?????????????????????? | | #?????????????????????? | | ##!!!## """"" #"Y"######?????????????????????? | | ?#!!!## """"" #"""#??????????????????????????? | | ?###### """"" ##############?????????????????? | +----------------------------------------------------+ Best States ------------- Heat Dissipation 25 Energy Generation 12 Energy Capacity 265 Matter Stores 300 Matter Capacity 300 Sight Range 16 Robot Scan Range 14 Terrain Scan Density 10 Armor Coverage 150 Evasion (%) 50 Targeting Accuracy 6 Recoil Reduction 2 Item Schematics ----------------- None Robot Schematics ------------------ None Fabricated ------------ Nothing Repaired ---------- Lgt. Treads | 34% | -10/Materials Alien Tech Used ----------------- None Achievements -------------- None Challenges ------------ None Game ------ Seed TargetConcussiveGun Manual? 0 Play Time 00:21:49 Cumulative 99.0 hours Start 2025.07.07 @ 20:59:23 End 2025.07.07 @ 21:18:35 Sessions 1 Manual Loads 0 Difficulty Rogue Special Mode None Game No. 76 Rogue 76 Adventurer 0 Explorer 0 Win Type - Total 0 Types 0/0/0/0/0/0/0/0/0/0 Lore% 59 Gallery% 48 Achievement% 44 Wizard Run 0 Options --------- Layout 1 ASCII 0 Keyboard 0 Movement Mouse Keybinds 0 Fullscreen 1 Font 24/Smallcaps Map View 50x35 Zoom Use 0% Tactical HUD 1 Map Filters NONE Filters NONE Steam 1 RUN: dd82bdab-4caf-43b6-83dc-5524e331ff4d